[Event "Titled Tuesday Blitz February 28 Early 2023"]
[White "Volkov, Maksim"]
[Black "Moroni, Luca Jr"]
[WhiteFideId "54123070"]
[BlackFideId "865834"]
[WhiteElo "2328"]
[BlackElo "2569"]
[Result "0-1"]
[Round "09"]
[TimeControl "180+2"]
[Date "2023.02.28"]
[WhiteClock "0:00:05"]
[BlackClock "0:00:27"]

1. d4 {[%clk 0:03:00]}  d6 {[%clk 0:03:00]} 2. Nf3 {[%clk 0:03:00]}  g6 {[%clk 0:03:01]} 3. c4 {[%clk 0:03:00]}  Bg7 {[%clk 0:03:02]} 4. g3 {[%clk 0:03:00]}  Bd7 {[%clk 0:03:02]} 5. Bg2 {[%clk 0:03:01]}  Qc8 {[%clk 0:03:02]} 6. h3 {[%clk 0:02:54]}  Nc6 {[%clk 0:03:01]} 7. Nc3 {[%clk 0:02:53]}  e5 {[%clk 0:03:01]} 8. dxe5 {[%clk 0:02:48]}  Nxe5 {[%clk 0:03:02]} 9. Nxe5 {[%clk 0:02:46]}  Bxe5 {[%clk 0:03:03]} 10. Qc2 {[%clk 0:02:46]}  Ne7 {[%clk 0:03:00]} 11. b3 {[%clk 0:02:45]}  O-O {[%clk 0:02:58]} 12. Bb2 {[%clk 0:02:39]}  a5 {[%clk 0:02:56]} 13. Rd1 {[%clk 0:02:35]}  a4 {[%clk 0:02:53]} 14. Nd5 {[%clk 0:02:24]}  Nxd5 {[%clk 0:02:51]} 15. Bxe5 {[%clk 0:02:14]}  Ne3 {[%clk 0:02:50]} 16. fxe3 {[%clk 0:02:13]}  dxe5 {[%clk 0:02:50]} 17. b4 {[%clk 0:02:11]}  c6 {[%clk 0:02:43]} 18. g4 {[%clk 0:02:10]}  Be6 {[%clk 0:02:39]} 19. O-O {[%clk 0:02:10]}  Qc7 {[%clk 0:02:38]} 20. a3 {[%clk 0:02:08]}  Rad8 {[%clk 0:02:34]} 21. Qc3 {[%clk 0:02:00]}  h6 {[%clk 0:02:24]} 22. Be4 {[%clk 0:01:51]}  Kg7 {[%clk 0:02:21]} 23. Bc2 {[%clk 0:01:46]}  h5 {[%clk 0:02:08]} 24. gxh5 {[%clk 0:01:36]}  Bxh3 {[%clk 0:02:08]} 25. Rxd8 {[%clk 0:01:34]}  Rxd8 {[%clk 0:02:08]} 26. Rd1 {[%clk 0:01:33]}  Rxd1+ {[%clk 0:02:00]} 27. Bxd1 {[%clk 0:01:34]}  Qe7 {[%clk 0:02:00]} 28. e4 {[%clk 0:01:31]}  Qg5+ {[%clk 0:01:58]} 29. Kf2 {[%clk 0:01:29]}  Qxh5 {[%clk 0:01:40]} 30. Bxa4 {[%clk 0:01:27]}  Bg4 {[%clk 0:01:39]} 31. Qe3 {[%clk 0:01:22]}  Qh2+ {[%clk 0:01:37]} 32. Ke1 {[%clk 0:01:21]}  Qh1+ {[%clk 0:01:37]} 33. Kd2 {[%clk 0:01:21]}  Qa1 {[%clk 0:01:37]} 34. Bd1 {[%clk 0:01:15]}  Qa2+ {[%clk 0:01:31]} 35. Bc2 {[%clk 0:01:08]}  Qxc4 {[%clk 0:01:29]} 36. Bb3 {[%clk 0:01:03]}  Qd4+ {[%clk 0:01:17]} 37. Qxd4 {[%clk 0:01:02]}  exd4 {[%clk 0:01:18]} 38. e5 {[%clk 0:00:51]}  Be6 {[%clk 0:01:09]} 39. Bc2 {[%clk 0:00:46]}  Bc4 {[%clk 0:01:02]} 40. a4 {[%clk 0:00:41]}  f6 {[%clk 0:01:02]} 41. exf6+ {[%clk 0:00:39]}  Kxf6 {[%clk 0:01:03]} 42. a5 {[%clk 0:00:26]}  g5 {[%clk 0:01:02]} 43. Be4 {[%clk 0:00:19]}  Ke5 {[%clk 0:01:01]} 44. Bf3 {[%clk 0:00:18]}  Kf4 {[%clk 0:01:02]} 45. Bh1 {[%clk 0:00:18]}  g4 {[%clk 0:01:01]} 46. Ke1 {[%clk 0:00:16]}  Ke3 {[%clk 0:01:00]} 47. Bg2 {[%clk 0:00:09]}  Bxe2 {[%clk 0:00:58]} 48. b5 {[%clk 0:00:10]}  Bxb5 {[%clk 0:00:58]} 49. a6 {[%clk 0:00:08]}  Bxa6 {[%clk 0:00:58]} 50. Kd1 {[%clk 0:00:08]}  c5 {[%clk 0:00:56]} 51. Ke1 {[%clk 0:00:08]}  b5 {[%clk 0:00:56]} 52. Bf1 {[%clk 0:00:06]}  b4 {[%clk 0:00:54]} 53. Be2 {[%clk 0:00:07]}  g3 {[%clk 0:00:53]} 54. Kf1 {[%clk 0:00:01]}  b3 {[%clk 0:00:53]} 55. Ke1 {[%clk 0:00:02]}  b2 {[%clk 0:00:53]} 56. Bd3 {[%clk 0:00:03]}  g2 {[%clk 0:00:50]} 57. Bb1 {[%clk 0:00:04]}  c4 {[%clk 0:00:49]} 58. Bd3 {[%clk 0:00:03]}  c3 {[%clk 0:00:49]} 59. Bf1 {[%clk 0:00:02]}  g1=Q {[%clk 0:00:40]} 60. Kd1 {[%clk 0:00:02]}  d3 {[%clk 0:00:39]} 61. Ke1 {[%clk 0:00:02]}  b1=N {[%clk 0:00:37]} 62. Kd1 {[%clk 0:00:02]}  Na3 {[%clk 0:00:37]} 63. Ke1 {[%clk 0:00:02]}  Nc4 {[%clk 0:00:36]} 64. Kd1 {[%clk 0:00:03]}  Bc8 {[%clk 0:00:35]} 65. Ke1 {[%clk 0:00:04]}  d2+ {[%clk 0:00:32]} 66. Kd1 {[%clk 0:00:05]}  Nb2+ {[%clk 0:00:32]} 67. Kc2 {[%clk 0:00:05]}  d1=B+ {[%clk 0:00:32]} 68. Kb1 {[%clk 0:00:04]}  Qxf1 {[%clk 0:00:31]} 69. Ka2 {[%clk 0:00:05]}  Be6+ {[%clk 0:00:29]} 70. Kb1 {[%clk 0:00:05]}  Bdb3# {[%clk 0:00:27]} 0-1


[Site "https://www.chess.com"]

[Event "Titled Tuesday Blitz February 28 Early 2023"]
[White "Alvarez Calzadilla, Jose Avelino"]
[Black "Bharath Subramaniyam H"]
[WhiteFideId "3526151"]
[BlackFideId "46634827"]
[WhiteElo "2310"]
[BlackElo "2395"]
[Result "0-1"]
[Round "09"]
[TimeControl "180+2"]
[Date "2023.02.28"]
[WhiteClock "0:00:01"]
[BlackClock "0:00:15"]

1. d4 {[%clk 0:02:58]}  Nf6 {[%clk 0:02:59]} 2. Nf3 {[%clk 0:02:58]}  g6 {[%clk 0:02:59]} 3. Bg5 {[%clk 0:02:58]}  Bg7 {[%clk 0:02:59]} 4. Nbd2 {[%clk 0:02:58]}  d5 {[%clk 0:02:57]} 5. e3 {[%clk 0:02:56]}  O-O {[%clk 0:02:57]} 6. c4 {[%clk 0:02:56]}  c6 {[%clk 0:02:55]} 7. Be2 {[%clk 0:02:56]}  Bf5 {[%clk 0:02:51]} 8. O-O {[%clk 0:02:56]}  Nbd7 {[%clk 0:02:50]} 9. b4 {[%clk 0:02:54]}  Ne4 {[%clk 0:02:48]} 10. Nxe4 {[%clk 0:02:51]}  Bxe4 {[%clk 0:02:48]} 11. Qb3 {[%clk 0:02:47]}  h6 {[%clk 0:02:44]} 12. Bh4 {[%clk 0:02:46]}  Nb6 {[%clk 0:02:32]} 13. c5 {[%clk 0:02:20]}  Nc4 {[%clk 0:02:11]} 14. Bxc4 {[%clk 0:02:17]}  dxc4 {[%clk 0:02:12]} 15. Qxc4 {[%clk 0:02:14]}  Bxf3 {[%clk 0:02:12]} 16. gxf3 {[%clk 0:02:15]}  Qd7 {[%clk 0:02:13]} 17. Bg3 {[%clk 0:02:11]}  h5 {[%clk 0:02:09]} 18. h4 {[%clk 0:01:58]}  Rad8 {[%clk 0:02:07]} 19. Rfd1 {[%clk 0:01:56]}  Qh3 {[%clk 0:02:00]} 20. Qf1 {[%clk 0:01:55]}  Qf5 {[%clk 0:02:00]} 21. Kg2 {[%clk 0:01:51]}  e5 {[%clk 0:01:55]} 22. dxe5 {[%clk 0:01:47]}  Bxe5 {[%clk 0:01:54]} 23. Rxd8 {[%clk 0:01:41]}  Rxd8 {[%clk 0:01:54]} 24. Rd1 {[%clk 0:01:38]}  Re8 {[%clk 0:01:25]} 25. Qd3 {[%clk 0:01:33]}  Qf6 {[%clk 0:01:16]} 26. Qd7 {[%clk 0:01:26]}  Re7 {[%clk 0:01:02]} 27. Qd8+ {[%clk 0:01:23]}  Kh7 {[%clk 0:01:01]} 28. Rd6 {[%clk 0:01:04]}  Re6 {[%clk 0:00:43]} 29. Qxf6 {[%clk 0:00:48]}  Bxf6 {[%clk 0:00:44]} 30. Rxe6 {[%clk 0:00:47]}  fxe6 {[%clk 0:00:45]} 31. e4 {[%clk 0:00:27]}  Bc3 {[%clk 0:00:43]} 32. a3 {[%clk 0:00:27]}  Bb2 {[%clk 0:00:43]} 33. Bf4 {[%clk 0:00:26]}  Bxa3 {[%clk 0:00:42]} 34. Bd2 {[%clk 0:00:26]}  a5 {[%clk 0:00:39]} 35. bxa5 {[%clk 0:00:24]}  Bxc5 {[%clk 0:00:40]} 36. f4 {[%clk 0:00:24]}  Be7 {[%clk 0:00:36]} 37. Kg3 {[%clk 0:00:24]}  Kg7 {[%clk 0:00:37]} 38. f3 {[%clk 0:00:18]}  Kf7 {[%clk 0:00:35]} 39. Be1 {[%clk 0:00:18]}  Ke8 {[%clk 0:00:32]} 40. f5 {[%clk 0:00:15]}  exf5 {[%clk 0:00:29]} 41. exf5 {[%clk 0:00:16]}  Bd6+ {[%clk 0:00:30]} 42. Kf2 {[%clk 0:00:11]}  gxf5 {[%clk 0:00:30]} 43. Ke3 {[%clk 0:00:12]}  Kd7 {[%clk 0:00:27]} 44. Kd4 {[%clk 0:00:12]}  Ke6 {[%clk 0:00:26]} 45. Kc4 {[%clk 0:00:07]}  Be7 {[%clk 0:00:24]} 46. Kd4 {[%clk 0:00:07]}  Bd8 {[%clk 0:00:17]} 47. Kc5 {[%clk 0:00:04]}  Bc7 {[%clk 0:00:17]} 48. Kc4 {[%clk 0:00:03]}  Bd6 {[%clk 0:00:16]} 49. Kd4 {[%clk 0:00:02]}  Kd7 {[%clk 0:00:15]} 50. Kc4 {[%clk 0:00:02]}  Kc8 {[%clk 0:00:15]} 51. Kd4 {[%clk 0:00:01]}  Kb8 {[%clk 0:00:15]} 52. Kc4 {[%clk 0:00:01]}  Ka7 {[%clk 0:00:15]} 0-1


[Site "https://www.chess.com"]

[Event "Titled Tuesday Blitz February 28 Early 2023"]
[White "Domingo Nunez, Ruben"]
[Black "Lagno, Kateryna"]
[WhiteFideId "22245570"]
[BlackFideId "14109336"]
[WhiteElo "2404"]
[BlackElo "2508"]
[Result "0-1"]
[Round "09"]
[TimeControl "180+2"]
[Date "2023.02.28"]
[WhiteClock "0:00:01"]
[BlackClock "0:00:19"]

1. e4 {[%clk 0:02:57]}  e5 {[%clk 0:03:00]} 2. Nf3 {[%clk 0:02:57]}  Nc6 {[%clk 0:03:00]} 3. Bc4 {[%clk 0:02:58]}  Bc5 {[%clk 0:02:59]} 4. c3 {[%clk 0:02:59]}  Nf6 {[%clk 0:02:59]} 5. d3 {[%clk 0:02:59]}  d6 {[%clk 0:02:58]} 6. O-O {[%clk 0:03:00]}  a6 {[%clk 0:02:59]} 7. Bb3 {[%clk 0:03:01]}  h6 {[%clk 0:02:57]} 8. Nbd2 {[%clk 0:03:01]}  O-O {[%clk 0:02:55]} 9. h3 {[%clk 0:03:01]}  Re8 {[%clk 0:02:50]} 10. Re1 {[%clk 0:03:02]}  Be6 {[%clk 0:02:48]} 11. Bc2 {[%clk 0:03:02]}  d5 {[%clk 0:02:41]} 12. Qe2 {[%clk 0:03:03]}  b5 {[%clk 0:02:30]} 13. Nh2 {[%clk 0:03:02]}  Ne7 {[%clk 0:02:24]} 14. Ndf1 {[%clk 0:02:45]}  Ng6 {[%clk 0:02:22]} 15. Qf3 {[%clk 0:02:39]}  dxe4 {[%clk 0:02:18]} 16. dxe4 {[%clk 0:02:39]}  Nh4 {[%clk 0:02:16]} 17. Qe2 {[%clk 0:02:32]}  Bc4 {[%clk 0:02:14]} 18. Qd1 {[%clk 0:02:30]}  Qe7 {[%clk 0:02:03]} 19. Be3 {[%clk 0:02:00]}  Rad8 {[%clk 0:01:59]} 20. Qc1 {[%clk 0:02:00]}  Bd3 {[%clk 0:01:44]} 21. Bxd3 {[%clk 0:01:48]}  Rxd3 {[%clk 0:01:43]} 22. Qc2 {[%clk 0:01:49]}  Red8 {[%clk 0:01:44]} 23. Rad1 {[%clk 0:01:48]}  Rxd1 {[%clk 0:01:41]} 24. Rxd1 {[%clk 0:01:47]}  Rxd1 {[%clk 0:01:42]} 25. Qxd1 {[%clk 0:01:48]}  Nxe4 {[%clk 0:01:42]} 26. Qd5 {[%clk 0:01:48]}  Bxe3 {[%clk 0:01:32]} 27. Nxe3 {[%clk 0:01:47]}  Nc5 {[%clk 0:01:25]} 28. Qa8+ {[%clk 0:01:05]}  Qf8 {[%clk 0:01:15]} 29. Qc6 {[%clk 0:01:04]}  Ng6 {[%clk 0:01:07]} 30. Qxc7 {[%clk 0:00:55]}  Ne6 {[%clk 0:00:50]} 31. Qc6 {[%clk 0:00:48]}  Ngf4 {[%clk 0:00:48]} 32. Nf3 {[%clk 0:00:40]}  Qb8 {[%clk 0:00:36]} 33. Qe4 {[%clk 0:00:17]}  Ng6 {[%clk 0:00:34]} 34. h4 {[%clk 0:00:16]}  Qd6 {[%clk 0:00:30]} 35. h5 {[%clk 0:00:16]}  Ngf4 {[%clk 0:00:31]} 36. Qf5 {[%clk 0:00:08]}  f6 {[%clk 0:00:24]} 37. Kh2 {[%clk 0:00:08]}  Qd3 {[%clk 0:00:23]} 38. Qg4 {[%clk 0:00:05]}  Ng5 {[%clk 0:00:23]} 39. Qc8+ {[%clk 0:00:04]}  Kh7 {[%clk 0:00:22]} 40. Nh4 {[%clk 0:00:03]}  Nxh5 {[%clk 0:00:21]} 41. g3 {[%clk 0:00:01]}  Qe4 {[%clk 0:00:20]} 42. Kg1 {[%clk 0:00:01]}  Nf3+ {[%clk 0:00:19]} 0-1


[Site "https://www.chess.com"]

[Event "Titled Tuesday Blitz February 28 Early 2023"]
[White "Tan, Jun Ying"]
[Black "Pakleza, Zbigniew"]
[WhiteFideId "5710413"]
[BlackFideId "1119290"]
[WhiteElo "2089"]
[BlackElo "2410"]
[Result "1/2-1/2"]
[Round "09"]
[TimeControl "180+2"]
[Date "2023.02.28"]
[WhiteClock "0:00:12"]
[BlackClock "0:00:05"]

1. d4 {[%clk 0:03:00]}  d6 {[%clk 0:02:59]} 2. Nf3 {[%clk 0:02:59]}  Bg4 {[%clk 0:02:59]} 3. g3 {[%clk 0:02:59]}  Bxf3 {[%clk 0:02:58]} 4. exf3 {[%clk 0:03:00]}  e6 {[%clk 0:02:58]} 5. Bg2 {[%clk 0:03:00]}  c6 {[%clk 0:02:58]} 6. O-O {[%clk 0:03:00]}  g6 {[%clk 0:02:56]} 7. c3 {[%clk 0:02:58]}  Bg7 {[%clk 0:02:56]} 8. Re1 {[%clk 0:02:58]}  Ne7 {[%clk 0:02:56]} 9. Nd2 {[%clk 0:02:57]}  O-O {[%clk 0:02:56]} 10. Ne4 {[%clk 0:02:58]}  d5 {[%clk 0:02:53]} 11. Nc5 {[%clk 0:02:57]}  b6 {[%clk 0:02:27]} 12. Nd3 {[%clk 0:02:57]}  Nd7 {[%clk 0:02:27]} 13. Be3 {[%clk 0:02:56]}  Rc8 {[%clk 0:02:23]} 14. Qd2 {[%clk 0:02:44]}  c5 {[%clk 0:02:19]} 15. dxc5 {[%clk 0:02:42]}  Nxc5 {[%clk 0:02:17]} 16. Nb4 {[%clk 0:02:37]}  Nf5 {[%clk 0:02:11]} 17. Nc2 {[%clk 0:02:34]}  Nxe3 {[%clk 0:01:55]} 18. Qxe3 {[%clk 0:02:30]}  Na4 {[%clk 0:01:43]} 19. Rab1 {[%clk 0:02:24]}  Qc7 {[%clk 0:01:29]} 20. Nd4 {[%clk 0:02:14]}  a6 {[%clk 0:01:22]} 21. f4 {[%clk 0:02:12]}  Nc5 {[%clk 0:01:15]} 22. h4 {[%clk 0:02:11]}  b5 {[%clk 0:01:12]} 23. h5 {[%clk 0:02:09]}  Rfd8 {[%clk 0:01:10]} 24. Bf3 {[%clk 0:02:03]}  Qd6 {[%clk 0:01:05]} 25. Kg2 {[%clk 0:01:58]}  Rb8 {[%clk 0:00:52]} 26. a3 {[%clk 0:01:56]}  a5 {[%clk 0:00:49]} 27. b4 {[%clk 0:01:47]}  Na4 {[%clk 0:00:50]} 28. Be2 {[%clk 0:01:42]}  Qa6 {[%clk 0:00:32]} 29. bxa5 {[%clk 0:01:33]}  Qxa5 {[%clk 0:00:30]} 30. Nxb5 {[%clk 0:01:25]}  Nxc3 {[%clk 0:00:26]} 31. Nxc3 {[%clk 0:01:24]}  Qxc3 {[%clk 0:00:27]} 32. Qxc3 {[%clk 0:01:19]}  Bxc3 {[%clk 0:00:27]} 33. Red1 {[%clk 0:01:14]}  Kg7 {[%clk 0:00:24]} 34. hxg6 {[%clk 0:01:13]}  hxg6 {[%clk 0:00:25]} 35. a4 {[%clk 0:01:09]}  Ba5 {[%clk 0:00:16]} 36. Bb5 {[%clk 0:01:09]}  Rdc8 {[%clk 0:00:16]} 37. Rbc1 {[%clk 0:01:08]}  Kf6 {[%clk 0:00:17]} 38. Kf3 {[%clk 0:01:05]}  Bb4 {[%clk 0:00:17]} 39. Ke2 {[%clk 0:01:04]}  Ba3 {[%clk 0:00:16]} 40. Rxc8 {[%clk 0:01:02]}  Rxc8 {[%clk 0:00:17]} 41. Rd2 {[%clk 0:01:02]}  Rc1 {[%clk 0:00:16]} 42. Ra2 {[%clk 0:00:59]}  Bb4 {[%clk 0:00:14]} 43. Kf3 {[%clk 0:00:59]}  Ba5 {[%clk 0:00:12]} 44. Rb2 {[%clk 0:00:51]}  Ke7 {[%clk 0:00:10]} 45. Ra2 {[%clk 0:00:51]}  Kd6 {[%clk 0:00:10]} 46. Re2 {[%clk 0:00:51]}  f6 {[%clk 0:00:10]} 47. Be8 {[%clk 0:00:49]}  g5 {[%clk 0:00:07]} 48. fxg5 {[%clk 0:00:47]}  fxg5 {[%clk 0:00:08]} 49. Kg4 {[%clk 0:00:47]}  Rc8 {[%clk 0:00:06]} 50. Bb5 {[%clk 0:00:46]}  Rg8 {[%clk 0:00:03]} 51. Rc2 {[%clk 0:00:46]}  d4 {[%clk 0:00:02]} 52. Rc6+ {[%clk 0:00:44]}  Kd5 {[%clk 0:00:03]} 53. Ra6 {[%clk 0:00:44]}  Bc3 {[%clk 0:00:02]} 54. Bd7 {[%clk 0:00:43]}  Rg6 {[%clk 0:00:01]} 55. Kh5 {[%clk 0:00:36]}  Rf6 {[%clk 0:00:02]} 56. Kxg5 {[%clk 0:00:35]}  Rxf2 {[%clk 0:00:02]} 57. Bxe6+ {[%clk 0:00:35]}  Kc5 {[%clk 0:00:03]} 58. Bf5 {[%clk 0:00:32]}  Rxf5+ {[%clk 0:00:01]} 59. Kxf5 {[%clk 0:00:32]}  d3 {[%clk 0:00:02]} 60. Ra8 {[%clk 0:00:19]}  d2 {[%clk 0:00:02]} 61. Rc8+ {[%clk 0:00:18]}  Kb4 {[%clk 0:00:02]} 62. Rd8 {[%clk 0:00:17]}  Kxa4 {[%clk 0:00:01]} 63. g4 {[%clk 0:00:16]}  Kb3 {[%clk 0:00:02]} 64. g5 {[%clk 0:00:13]}  Kc2 {[%clk 0:00:02]} 65. g6 {[%clk 0:00:10]}  d1=Q {[%clk 0:00:03]} 66. Rxd1 {[%clk 0:00:10]}  Kxd1 {[%clk 0:00:04]} 67. Ke6 {[%clk 0:00:10]}  Ke2 {[%clk 0:00:04]} 68. Kf7 {[%clk 0:00:11]}  Kf3 {[%clk 0:00:05]} 69. g7 {[%clk 0:00:12]}  Bxg7 {[%clk 0:00:05]} 1/2-1/2


[Site "https://www.chess.com"]

[Event "Titled Tuesday Blitz February 28 Early 2023"]
[White "Jakubowski, Krzysztof"]
[Black "EREBUNI91"]
[WhiteFideId "1112848"]
[WhiteElo "2359"]
[BlackElo "2729"]
[Result "0-1"]
[Round "09"]
[TimeControl "180+2"]
[Date "2023.02.28"]
[WhiteClock "0:01:00"]
[BlackClock "0:00:43"]

1. e4 {[%clk 0:02:56]}  c5 {[%clk 0:02:59]} 2. Nf3 {[%clk 0:02:55]}  d6 {[%clk 0:02:59]} 3. d4 {[%clk 0:02:54]}  cxd4 {[%clk 0:03:00]} 4. Nxd4 {[%clk 0:02:54]}  Nf6 {[%clk 0:02:57]} 5. Nc3 {[%clk 0:02:54]}  a6 {[%clk 0:02:58]} 6. Be3 {[%clk 0:02:53]}  e5 {[%clk 0:02:57]} 7. Nb3 {[%clk 0:02:53]}  Be6 {[%clk 0:02:58]} 8. h3 {[%clk 0:02:52]}  Be7 {[%clk 0:02:42]} 9. Qf3 {[%clk 0:02:48]}  Qc7 {[%clk 0:02:34]} 10. O-O-O {[%clk 0:02:44]}  Nbd7 {[%clk 0:02:33]} 11. g4 {[%clk 0:02:43]}  Rc8 {[%clk 0:02:10]} 12. g5 {[%clk 0:02:27]}  Ng8 {[%clk 0:02:09]} 13. Bd3 {[%clk 0:01:59]}  b5 {[%clk 0:02:07]} 14. Kb1 {[%clk 0:01:53]}  Nc5 {[%clk 0:01:57]} 15. h4 {[%clk 0:01:51]}  Nxd3 {[%clk 0:01:46]} 16. cxd3 {[%clk 0:01:41]}  Qd7 {[%clk 0:01:11]} 17. Rc1 {[%clk 0:01:36]}  Bd8 {[%clk 0:01:10]} 18. d4 {[%clk 0:01:24]}  Ne7 {[%clk 0:00:55]} 19. dxe5 {[%clk 0:01:10]}  dxe5 {[%clk 0:00:47]} 20. Rhd1 {[%clk 0:01:10]}  Bg4 {[%clk 0:00:45]} 21. Rxd7 {[%clk 0:01:02]}  Bxf3 {[%clk 0:00:45]} 22. Ra7 {[%clk 0:01:01]}  b4 {[%clk 0:00:44]} 23. Nd5 {[%clk 0:01:00]}  Bxe4+ {[%clk 0:00:43]} 0-1


[Site "https://www.chess.com"]

[Event "Titled Tuesday Blitz February 28 Early 2023"]
[White "Mirzoev, Azer"]
[Black "Poliakova, Varvara"]
[WhiteFideId "13400304"]
[BlackFideId "13518313"]
[WhiteElo "2525"]
[BlackElo "2075"]
[Result "0-1"]
[Round "09"]
[TimeControl "180+2"]
[Date "2023.02.28"]
[WhiteClock "0:00:02"]
[BlackClock "0:00:13"]

1. Nf3 {[%clk 0:03:00]}  f5 {[%clk 0:02:57]} 2. c4 {[%clk 0:02:59]}  d6 {[%clk 0:02:56]} 3. b4 {[%clk 0:02:59]}  e5 {[%clk 0:02:57]} 4. e3 {[%clk 0:02:58]}  Nf6 {[%clk 0:02:53]} 5. Nc3 {[%clk 0:02:57]}  g6 {[%clk 0:02:52]} 6. d4 {[%clk 0:02:57]}  e4 {[%clk 0:02:50]} 7. Nd2 {[%clk 0:02:57]}  Bg7 {[%clk 0:02:51]} 8. a4 {[%clk 0:02:56]}  a5 {[%clk 0:02:51]} 9. b5 {[%clk 0:02:55]}  O-O {[%clk 0:02:48]} 10. Be2 {[%clk 0:02:55]}  c5 {[%clk 0:02:45]} 11. Nb3 {[%clk 0:02:49]}  b6 {[%clk 0:02:40]} 12. Bb2 {[%clk 0:02:45]}  g5 {[%clk 0:02:30]} 13. h4 {[%clk 0:02:37]}  g4 {[%clk 0:02:25]} 14. g3 {[%clk 0:02:36]}  Be6 {[%clk 0:02:23]} 15. Rc1 {[%clk 0:02:21]}  Nbd7 {[%clk 0:02:18]} 16. O-O {[%clk 0:02:20]}  Qe7 {[%clk 0:02:09]} 17. Rc2 {[%clk 0:02:18]}  Rad8 {[%clk 0:02:04]} 18. Rd2 {[%clk 0:02:18]}  Bf7 {[%clk 0:01:58]} 19. Kg2 {[%clk 0:02:18]}  Rfe8 {[%clk 0:01:45]} 20. Qc2 {[%clk 0:02:13]}  Rc8 {[%clk 0:01:40]} 21. Rfd1 {[%clk 0:02:12]}  Red8 {[%clk 0:01:21]} 22. Qb1 {[%clk 0:02:10]}  Nf8 {[%clk 0:01:18]} 23. Qa1 {[%clk 0:01:59]}  Ne6 {[%clk 0:01:13]} 24. dxc5 {[%clk 0:01:56]}  dxc5 {[%clk 0:01:14]} 25. Nd5 {[%clk 0:01:52]}  Nxd5 {[%clk 0:01:11]} 26. cxd5 {[%clk 0:01:52]}  Bxb2 {[%clk 0:01:08]} 27. Qxb2 {[%clk 0:01:52]}  Nf8 {[%clk 0:01:05]} 28. Bc4 {[%clk 0:01:47]}  Rd6 {[%clk 0:01:02]} 29. Na1 {[%clk 0:01:38]}  Rcd8 {[%clk 0:01:02]} 30. Nc2 {[%clk 0:01:38]}  Ng6 {[%clk 0:01:00]} 31. Na3 {[%clk 0:01:38]}  Qe5 {[%clk 0:00:59]} 32. Qa2 {[%clk 0:01:34]}  Qc3 {[%clk 0:00:52]} 33. Bb3 {[%clk 0:01:25]}  h5 {[%clk 0:00:46]} 34. Nc4 {[%clk 0:01:23]}  Qf6 {[%clk 0:00:44]} 35. Nxd6 {[%clk 0:01:20]}  Rxd6 {[%clk 0:00:42]} 36. Qa1 {[%clk 0:01:18]}  Ne5 {[%clk 0:00:40]} 37. Ba2 {[%clk 0:01:14]}  Kg7 {[%clk 0:00:39]} 38. Kf1 {[%clk 0:01:14]}  Nd3 {[%clk 0:00:37]} 39. Qb1 {[%clk 0:01:00]}  Bxd5 {[%clk 0:00:34]} 40. Bxd5 {[%clk 0:00:57]}  Rxd5 {[%clk 0:00:35]} 41. Qb3 {[%clk 0:00:57]}  Qd6 {[%clk 0:00:31]} 42. Qc4 {[%clk 0:00:55]}  Kf6 {[%clk 0:00:29]} 43. Kg1 {[%clk 0:00:55]}  Qe6 {[%clk 0:00:26]} 44. Rc2 {[%clk 0:00:50]}  Rd6 {[%clk 0:00:25]} 45. Qc3+ {[%clk 0:00:44]}  Qe5 {[%clk 0:00:25]} 46. Qb3 {[%clk 0:00:42]}  Qe6 {[%clk 0:00:24]} 47. Rb1 {[%clk 0:00:39]}  Qxb3 {[%clk 0:00:24]} 48. Rxb3 {[%clk 0:00:39]}  Nb4 {[%clk 0:00:22]} 49. Rc1 {[%clk 0:00:38]}  Rd2 {[%clk 0:00:22]} 50. Rbb1 {[%clk 0:00:34]}  Ra2 {[%clk 0:00:21]} 51. Rd1 {[%clk 0:00:32]}  Nd3 {[%clk 0:00:22]} 52. Ra1 {[%clk 0:00:29]}  Rc2 {[%clk 0:00:21]} 53. Ra3 {[%clk 0:00:23]}  c4 {[%clk 0:00:20]} 54. Raa1 {[%clk 0:00:21]}  Ke5 {[%clk 0:00:21]} 55. Rdb1 {[%clk 0:00:19]}  Kd5 {[%clk 0:00:21]} 56. Rd1 {[%clk 0:00:18]}  Kc5 {[%clk 0:00:22]} 57. Rab1 {[%clk 0:00:13]}  c3 {[%clk 0:00:19]} 58. Rb3 {[%clk 0:00:10]}  Kc4 {[%clk 0:00:19]} 59. Ra3 {[%clk 0:00:10]}  Rd2 {[%clk 0:00:18]} 60. Rda1 {[%clk 0:00:06]}  c2 {[%clk 0:00:17]} 61. R3a2 {[%clk 0:00:04]}  Nb4 {[%clk 0:00:13]} 62. Ra3 {[%clk 0:00:03]}  Rd1+ {[%clk 0:00:13]} 63. Kg2 {[%clk 0:00:03]}  Rxa1 {[%clk 0:00:13]} 64. Rxa1 {[%clk 0:00:02]}  Nd3 {[%clk 0:00:13]} 0-1


[Site "https://www.chess.com"]

[Event "Titled Tuesday Blitz February 28 Early 2023"]
[White "Kucuksari, Kaan"]
[Black "Odegov, Artem"]
[WhiteFideId "6380166"]
[BlackFideId "34183644"]
[WhiteElo "2364"]
[BlackElo "2300"]
[Result "1/2-1/2"]
[Round "09"]
[TimeControl "180+2"]
[Date "2023.02.28"]
[WhiteClock "0:01:14"]
[BlackClock "0:00:47"]

1. d4 {[%clk 0:03:00]}  d5 {[%clk 0:02:59]} 2. Nf3 {[%clk 0:02:57]}  c5 {[%clk 0:02:58]} 3. c4 {[%clk 0:02:56]}  e6 {[%clk 0:02:58]} 4. cxd5 {[%clk 0:02:57]}  exd5 {[%clk 0:02:59]} 5. Nc3 {[%clk 0:02:57]}  Nc6 {[%clk 0:02:59]} 6. g3 {[%clk 0:02:57]}  Nf6 {[%clk 0:02:59]} 7. Bg2 {[%clk 0:02:58]}  Be7 {[%clk 0:02:59]} 8. O-O {[%clk 0:02:58]}  O-O {[%clk 0:02:59]} 9. b3 {[%clk 0:02:58]}  Ne4 {[%clk 0:02:59]} 10. Bb2 {[%clk 0:02:58]}  Bf6 {[%clk 0:02:59]} 11. Na4 {[%clk 0:02:44]}  b5 {[%clk 0:02:01]} 12. Nxc5 {[%clk 0:02:44]}  Nxc5 {[%clk 0:02:00]} 13. Rc1 {[%clk 0:02:44]}  Nxd4 {[%clk 0:01:52]} 14. Bxd4 {[%clk 0:02:36]}  Ne4 {[%clk 0:01:51]} 15. Bxf6 {[%clk 0:02:36]}  Nxf6 {[%clk 0:01:52]} 16. Nd4 {[%clk 0:02:36]}  Bd7 {[%clk 0:01:51]} 17. Nc6 {[%clk 0:02:35]}  Bxc6 {[%clk 0:01:48]} 18. Rxc6 {[%clk 0:02:36]}  Re8 {[%clk 0:01:49]} 19. Rc5 {[%clk 0:02:33]}  Qb6 {[%clk 0:01:48]} 20. b4 {[%clk 0:02:32]}  a5 {[%clk 0:01:42]} 21. a3 {[%clk 0:02:23]}  axb4 {[%clk 0:01:39]} 22. axb4 {[%clk 0:02:24]}  Ra4 {[%clk 0:01:34]} 23. Qd2 {[%clk 0:02:11]}  h6 {[%clk 0:01:13]} 24. Bxd5 {[%clk 0:02:10]}  Nxd5 {[%clk 0:01:14]} 25. Rxd5 {[%clk 0:02:10]}  Qe6 {[%clk 0:01:14]} 26. Rxb5 {[%clk 0:02:09]}  Qxe2 {[%clk 0:01:14]} 27. Qxe2 {[%clk 0:02:10]}  Rxe2 {[%clk 0:01:14]} 28. Rb8+ {[%clk 0:02:11]}  Kh7 {[%clk 0:01:14]} 29. Rb7 {[%clk 0:02:08]}  Kg6 {[%clk 0:01:08]} 30. b5 {[%clk 0:01:37]}  Rb2 {[%clk 0:01:03]} 31. h4 {[%clk 0:01:26]}  Rab4 {[%clk 0:01:00]} 32. Rc1 {[%clk 0:01:17]}  Rxb5 {[%clk 0:00:55]} 33. Rc6+ {[%clk 0:01:17]}  f6 {[%clk 0:00:55]} 34. h5+ {[%clk 0:01:17]}  Kh7 {[%clk 0:00:48]} 35. Rxb5 {[%clk 0:01:16]}  Rxb5 {[%clk 0:00:48]} 36. g4 {[%clk 0:01:15]}  Rg5 {[%clk 0:00:47]} 37. f3 {[%clk 0:01:16]}  f5 {[%clk 0:00:48]} 38. Rc4 {[%clk 0:01:16]}  fxg4 {[%clk 0:00:47]} 39. fxg4 {[%clk 0:01:17]}  g6 {[%clk 0:00:46]} 40. hxg6+ {[%clk 0:01:17]}  Kxg6 {[%clk 0:00:47]} 41. Kf2 {[%clk 0:01:16]}  h5 {[%clk 0:00:46]} 42. gxh5+ {[%clk 0:01:14]}  Kxh5 {[%clk 0:00:47]} 43. Kf3 {[%clk 0:01:14]} 1/2-1/2


[Site "https://www.chess.com"]